fUSD/lending_fUSD_20251023
["ID","MTS","AMOUNT","RATE_DAILY","PERIOD"]
[392180536,1761240639964,-2631.1,0.00039413,2]
[392180537,1761240639974,-1458.17616315,0.00039932,15]
[392180538,1761240639984,-5329.76975438,0.0004,120]
[392180539,1761240639994,-150352.71707634,0.0004,120]
[392180541,1761240640004,-166.66,0.00040032,30]
[392180543,1761240640013,-993.26,0.00040436,2]
[392180545,1761240640023,-945.0,0.00040436,2]
[392180547,1761240640032,-1458.17616315,0.00040485,15]
[392180549,1761240640042,-166.66,0.0004084,30]
[392180551,1761240640051,-1458.17616315,0.00041038,15]
[392180553,1761240640060,-1458.17616315,0.00041591,15]
[392180555,1761240640069,-166.66,0.00041649,30]
[392180556,1761240640079,-500.0,0.00041858,2]
[392180558,1761240640088,-500.0,0.00041858,120]
[392180560,1761240640099,-500.0,0.00041859,30]
[392180562,1761240640108,-500.0,0.00041859,30]
[392180564,1761240640118,-500.0,0.00041859,30]
[392180566,1761240640127,-560.19855192,0.00041859,30]
[392180568,1761240640137,-21728.76461428,0.00042,120]
[392180570,1761240640146,-51039.81899835,0.00042,120]
[392180571,1761240640158,-653.3373807,0.00042,120]
[392180572,1761240640169,-269.36548125,0.00042,120]
[392180573,1761240640239,-784.62893368,0.00042,120]
[392180584,1761240642858,-4093.14369564,0.00042,120]
[392180585,1761240642870,-1705.80366141,0.00042,120]
[392180586,1761240642882,-1105.54540151,0.00042,120]
[392180587,1761240642891,-1458.17616315,0.00042144,15]
[392180588,1761240642903,-250.0,0.00042234,120]
[392180589,1761240642913,-166.66,0.00042458,30]
[392180591,1761240642922,-476.23156132,0.00042669,10]
[392180593,1761240642931,-20885.79775126,0.00042669,10]
[392180595,1761240642942,-1458.17616315,0.00042698,15]
[392180596,1761240642952,-150.0,0.00042829,2]
[392180598,1761240642961,-1458.17616315,0.00043251,15]
[392180600,1761240642970,-4585.41,0.00043414,7]
[392180602,1761240642983,-500.0,0.000435,60]
[392180604,1761240642993,-531783.21222006,0.000435,120]
[392180606,1761240643003,-1500.0,0.00043705,120]
[392180608,1761240643012,-1398.64,0.00043711,120]
[392180610,1761240643022,-666.0,0.0004373,20]
[392180611,1761240643032,-1000.0,0.000438,7]
[392180612,1761240643041,-1458.17616315,0.00043804,15]
[392180613,1761240643051,-500.0,0.00043835,120]
[392180614,1761240643060,-500.0,0.00043835,120]
[392180615,1761240643069,-168.0,0.00043848,2]
[392180616,1761240643078,-200.0,0.00043857,2]
[392180617,1761240643087,-172.18827837,0.00043985,28]
[392180618,1761240643096,-10100.3673462,0.0004399,3]
[392180619,1761240643106,-37019.53703784,0.00044,30]
[392180620,1761240643115,-168.0,0.00044085,2]
[392180621,1761240643124,-172.18827835,0.00044297,28]
[392180622,1761240643133,-1458.17616315,0.00044357,15]
[392180623,1761240643142,-699.60476,0.0004455,23]
[392180624,1761240643152,-500.0,0.00044596,60]
[392180625,1761240643161,-1000.0,0.000446,7]
[392180626,1761240643171,-172.18827835,0.00044608,28]
[392180627,1761240643180,-150.0,0.0004465,30]
[392180628,1761240643189,-153.72555774,0.00044779,15]
[392180629,1761240643198,-1202.93194425,0.0004478,3]
[392180637,1761240646014,-250.0,0.0002736,2]
[392180638,1761240646024,-653.13853864,0.00043884,50]
[392180639,1761240646036,-596.86146136,0.0004478,3]
[392180640,1761240646049,-418.06931013,0.0004478,3]
[392180641,1761240646076,-444.52577509,0.0004478,3]
[392180642,1761240646395,-19.40458367,0.0004478,3]
[392180643,1761240646408,-4087.70478047,0.0004478,3]
[392180645,1761240651995,500.0,0.00036623,30]
[392180646,1761240652490,500.0,0.00036623,30]
[392180666,1761240774498,-255.90911328,0.00019898,2]
[392180667,1761240776508,-267.13503218,0.00019898,2]
[392180669,1761240777905,-201.38928142,0.00019898,2]
[392180674,1761240780625,-313.46625104,0.00019898,2]
[392180675,1761240782167,-235.04628642,0.00019898,2]
[392180690,1761240791679,-153.52,0.00019898,2]
[392180691,1761240793195,-179.42433632,0.00019898,2]
[392180693,1761240796871,-410.52093726,0.00019898,2]
[392180694,1761240798313,-463.61669152,0.00019898,2]
[392180695,1761240800476,-196.77046906,0.00019898,2]
[392180696,1761240819890,-193.69127926,0.00019898,2]
[392180697,1761240821449,-421.96080089,0.00019898,2]
[392180698,1761240823643,-335.71190526,0.00019898,2]
[392180700,1761240825660,-271.49874107,0.00019898,2]
[392180701,1761240829145,-222.06286013,0.00019898,2]
[392180702,1761240831693,-236.26594036,0.00019898,2]
[392180703,1761240833161,-232.29775785,0.00019898,2]
[392180708,1761240849475,-57.84527868,0.00019898,2]
[392180709,1761240849502,-229.2345595,0.00019948,2]
[392180714,1761240852744,-20.7654405,0.00019948,2]
[392180715,1761240852770,-229.45760319,0.00019948,2]
[392180725,1761240855337,-170.75940147,0.00019948,2]
[392180740,1761240910771,402.0527883,0.00036621,120]
[392180754,1761240940501,-351.83752803,0.00019898,2]
[392180755,1761240943051,-204.90186864,0.00019898,2]
[392180756,1761240948589,-185.42162884,0.00019898,2]
[392180757,1761240950048,-193.80587328,0.00019898,2]
[392180759,1761240969524,-254.94765122,0.00019898,2]
[392180760,1761240972147,-186.35000016,0.00019898,2]
[392180761,1761240974368,-190.40926655,0.00019898,2]
[392180762,1761240976072,-369.19885163,0.00019898,2]
[392180763,1761240977578,-265.39791098,0.00019898,2]
[392180764,1761240978960,-3630.77553143,0.00019898,2]
[392180765,1761240978984,-5.47744795,0.00019948,2]
[392180766,1761240979007,-1200.0,0.00019998,2]
[392180767,1761240979029,-163.74702062,0.0002,2]
[392180768,1761240989464,-336.25297938,0.0002,2]
[392180871,1761241308202,1453.89172,0.0002,2]
[392180910,1761241447505,1442.3,0.00019781,2]
[392180925,1761241465728,278.56,0.00013699,2]
[392180949,1761241540329,-231.96443831,0.00020187,2]
[392181093,1761241640086,-46.59556169,0.00020187,2]
[392181094,1761241640107,-245.2372668,0.00020455,2]
[392181095,1761241640127,-166.76327636,0.00020722,2]
[392181096,1761241640149,-986.23197432,0.00020823,2]
[392181098,1761241645119,-456.06802568,0.00020823,2]
[392181099,1761241645139,-407.55929939,0.0002089,2]
[392181101,1761241658684,1078.96179977,0.00036627,120]
[392181297,1761241757097,-1046.33242061,0.0002089,2]
[392181298,1761241757120,-159.59604499,0.00021764,2]
[392181299,1761241757140,-160.0,0.00021846,2]
[392181300,1761241757159,-1003.50490629,0.00021864,2]
[392181303,1761241762099,-438.79509371,0.00021864,2]
[392181304,1761241762119,-640.6077866,0.0002189,2]
[392181305,1761241768157,-813.2839334,0.0002189,2]
[392181306,1761241768177,-300.0,0.00022204,2]
[392181307,1761241768196,-840.0,0.00022205,2]
[392181308,1761241768215,-287.0,0.00022205,2]
[392181309,1761241768233,-300.0,0.00022205,2]
[392181310,1761241768252,-1578.44562253,0.00022206,2]
[392181311,1761241768272,-2719.29510572,0.00022206,2]
[392181312,1761241768294,-250.0,0.00022206,2]
[392181313,1761241768313,-2500.0,0.00022206,2]
[392181314,1761241768331,-195.0,0.00022206,2]
[392181315,1761241768352,-1453.89173,0.0002289,2]
[392181316,1761241768372,-1442.3,0.00022905,2]
[392181317,1761241768391,-1453.89172,0.0002389,2]
[392181318,1761241768410,-1442.3,0.00023946,2]
[392181319,1761241768429,-1200.0,0.00023963,2]
[392181320,1761241768448,-300.0,0.00023964,2]
[392181321,1761241768466,-195.0,0.00023966,2]
[392181322,1761241768486,-420.0,0.00024123,2]
[392181323,1761241768505,-300.0,0.00024125,2]
[392181324,1761241768524,-1453.89172,0.0002489,2]
[392181325,1761241768543,-500.0,0.00024932,2]
[392181326,1761241768562,-500.0,0.00024986,2]
[392181327,1761241768582,-1442.3,0.00024987,2]
[392181328,1761241768600,-1037.63,0.00025,2]
[392181329,1761241768619,-1037.63,0.000255,2]
[392181330,1761241768638,-150.0,0.00025998,2]
[392181331,1761241768657,-1442.3,0.00026028,2]
[392181332,1761241768676,-1065.0,0.00026107,2]
[392181333,1761241768695,-587.0,0.00026209,2]
[392181334,1761241768714,-445.86977539,0.0002631,2]
[392181335,1761241768733,-500.0,0.0002631,2]
[392181336,1761241768752,-150.86475471,0.0002631,2]
[392181337,1761241768771,-278.56,0.00026676,2]
[392181338,1761241768790,-500.0,0.00026713,2]
[392181339,1761241768809,-500.0,0.00026713,2]
[392181340,1761241768828,-500.0,0.00026713,2]
[392181341,1761241768849,-504.74798052,0.00026713,2]
[392181342,1761241768869,-500.0,0.00026713,2]
[392181343,1761241768890,-500.0,0.00026858,2]
[392181344,1761241768909,-251.85940406,0.00026985,2]
[392181345,1761241768928,-1442.3,0.00027069,2]
[392181346,1761241768948,-1000.0,0.0002726,2]
[392181347,1761241768967,-1000.0,0.00028109,2]
[392181348,1761241768988,-1442.3,0.0002811,2]
[392181349,1761241769008,-1137.41870482,0.00029152,2]
[392181366,1761241831797,-563.0625,0.00024559,2]
[392181367,1761241831810,-6087.6627104,0.00024559,2]
[392181368,1761241831819,-3130.97604518,0.00027819,2]
[392181369,1761241831841,-391.2107439,0.00027819,2]
[392181370,1761241831854,-2904.14323361,0.00027819,2]
[392181371,1761241831866,-224.39518771,0.00027819,2]
[392181372,1761241831876,-304.88129518,0.00029152,2]
[392181373,1761241831886,-300.0,0.00029672,120]
[392181374,1761241831895,-806.53246743,0.00030193,2]
[392181375,1761241831911,-635.76753257,0.00030193,2]
[392181376,1761241831920,-6650.7252104,0.0003108,2]
[392181377,1761241831930,-1442.3,0.00031234,2]
[392181378,1761241831940,-300.0,0.00032067,120]
[392181379,1761241831950,-1442.3,0.00032275,2]
[392181380,1761241831959,-278.56,0.00033165,2]
[392181381,1761241831969,-1442.3,0.00033316,2]
[392181382,1761241831979,-154.06,0.00033883,60]
[392181383,1761241831988,-154.06,0.00033983,60]
[392181384,1761241831997,-154.06,0.00034083,60]
[392181385,1761241832007,-154.06,0.00034183,60]
[392181386,1761241832016,-154.06,0.00034283,60]
[392181387,1761241832026,-2976.68893197,0.0003434,2]
[392181388,1761241832038,-3674.03627843,0.0003434,2]
[392181389,1761241832047,-1442.3,0.00034357,2]
[392181390,1761241832057,-154.08575666,0.00034383,60]
[392181391,1761241832067,-5512.0,0.000348,5]
[392181393,1761241832078,-150.0,0.00035266,2]
[392181395,1761241832088,-1442.3,0.00035398,2]
[392181397,1761241832098,-1000.0,0.00035425,2]
[392181399,1761241832107,-1442.3,0.00036439,2]
[392181401,1761241832116,-150.0,0.00036628,30]
[392181403,1761241832125,-294.16584017,0.00036696,4]
[392181405,1761241832135,-2000.0,0.00037,2]
[392181407,1761241832145,-500.0,0.00037213,2]
[392181409,1761241832154,-1442.3,0.00037481,2]
[392181411,1761241832164,-500.0,0.00037825,3]
[392181413,1761241832174,-701.675,0.00037825,49]
[392181415,1761241832183,-178.92338346,0.000383,2]
[392181417,1761241832192,-1000.0,0.00038373,3]
[392181419,1761241832204,-1442.3,0.00038522,2]
[392181422,1761241832224,-503.19929061,0.00038921,3]
[392181425,1761241832235,-248.45,0.00039399,30]
[392181428,1761241832244,-1000.0,0.00039544,120]
[392181432,1761241832253,-1442.3,0.00039563,2]
[392181434,1761241832262,-278.56,0.00039654,2]
[392181436,1761241832271,-248.45,0.00039673,30]
[392181438,1761241832281,-319.13,0.00039776,2]
[392181441,1761241832290,-1000.0,0.00039853,2]
[392181444,1761241832300,-248.45,0.00039947,30]
[392181447,1761241832315,-250.0,0.00039958,7]
[392181450,1761241832324,-557.00000016,0.00039999,120]
[392181453,1761241832333,-248.45,0.00040221,30]
[392181455,1761241832343,-295.4,0.00040297,120]
[392181457,1761241832353,-248.45,0.00040495,30]
[392181459,1761241832362,-1000.0,0.000407,2]
[392181461,1761241832372,-426.73,0.00041374,2]
[392181463,1761241832381,-7865.68,0.0004139,2]
[392181465,1761241832391,-195.57,0.00042011,2]
[392181468,1761241832404,-372.79494855,0.00042018,4]
[392181470,1761241832413,-500.0,0.00042571,120]
[392181472,1761241832423,-366.41400991,0.00042734,2]
[392181474,1761241832432,-500.0,0.00042845,120]
[392181476,1761241832441,-500.0,0.00043,30]
[392181478,1761241832450,-532.13515562,0.00043,30]
[392181480,1761241832459,-169.3734529,0.00043,30]
[392181482,1761241832469,-500.0,0.00043,30]
[392181484,1761241832478,-500.0,0.00043,30]
[392181486,1761241832487,-500.0,0.00043,30]
[392181488,1761241832496,-500.0,0.00043,30]
[392181490,1761241832505,-500.0,0.00043,30]
[392181492,1761241832515,-500.0,0.00043,30]
[392181494,1761241832524,-500.0,0.00043,30]
[392181496,1761241832533,-500.0,0.00043,30]
[392181498,1761241832542,-500.0,0.00043,30]
[392181500,1761241832551,-500.0,0.00043,30]
[392181502,1761241832563,-500.0,0.00043,30]
[392181504,1761241832572,-503.16512336,0.00043,30]
[392181506,1761241832581,-500.0,0.00043,30]
[392181508,1761241832590,-500.0,0.00043,30]
[392181510,1761241832599,-500.0,0.00043,30]
[392181512,1761241832608,-718.48431966,0.00043,30]
[392181514,1761241832618,-408.48046896,0.00043,30]
[392181516,1761241832627,-500.0,0.00043,30]
[392181518,1761241832637,-500.0,0.00043,30]
[392181520,1761241832646,-500.0,0.00043,30]
[392181522,1761241832655,-892.44005182,0.00043,30]
[392181524,1761241832664,-500.0,0.00043043,10]
[392181526,1761241832674,-500.0,0.00043043,10]
[392181528,1761241832683,-160.17732397,0.00043043,10]
[392181530,1761241832692,-298.9689638,0.00043043,3]
[392181532,1761241832702,-500.0,0.00043119,120]
[392181534,1761241832711,-500.0,0.00043393,120]
[392181536,1761241832720,-500.0,0.000435,60]
[392181538,1761241832730,-388.0,0.00043585,120]
[392181540,1761241832739,-500.0,0.00043591,10]
[392181542,1761241832748,-444.83673754,0.00043622,2]
[392181544,1761241832757,-500.0,0.00043622,10]
[392181546,1761241832767,-388.0,0.00043662,7]
[392181548,1761241832779,-222.33,0.00043667,120]
[392181551,1761241832789,-1000.0,0.000438,7]
[392181553,1761241832798,-2942.07551044,0.0004382,15]
[392181555,1761241832808,-151.0,0.00043832,120]
[392181557,1761241832819,-500.0,0.00043835,120]
[392181558,1761241832828,-500.0,0.00043835,120]
[392181559,1761241832838,-500.0,0.00043835,30]
[392181560,1761241832848,-500.0,0.00043835,120]
[392181561,1761241832857,-500.0,0.00043835,120]
[392181562,1761241832867,-500.19,0.00043835,120]
[392181563,1761241832877,-537.88,0.00043835,120]
[392181564,1761241832886,-500.0,0.00043835,120]
[392181565,1761241832895,-500.0,0.00043835,120]
[392181566,1761241832906,-500.0,0.00043835,120]
[392181567,1761241832916,-237.2392745,0.00043835,120]
[392181568,1761241832926,-502.7,0.00043835,120]
[392181569,1761241832936,-500.0,0.00043835,120]
[392181570,1761241832947,-500.0,0.00043835,120]
[392181571,1761241832956,-145.77010947,0.00043835,120]
[392181572,1761241832977,-354.22989053,0.00043835,120]
[392181573,1761241832987,-500.0,0.00043835,120]
[392181574,1761241832997,-500.0,0.00043835,120]
[392181575,1761241833006,-500.0,0.00043835,120]
[392181576,1761241833016,-500.0,0.00043835,120]
[392181577,1761241833025,-500.0,0.00043835,120]
[392181578,1761241833035,-500.0,0.00043835,120]
[392181579,1761241833044,-500.0,0.00043835,2]
[392181580,1761241833053,-389.0,0.00043856,2]
[392181581,1761241833064,-291.08,0.00043883,14]
[392181582,1761241833073,-151.0,0.00043897,120]
[392181583,1761241833082,-500.0,0.00043899,2]
[392181584,1761241833091,-114617.06879021,0.000439,120]
[392181585,1761241833101,-500.0,0.0004392,10]
[392181586,1761241833111,-172.16017549,0.0004392,10]
[392181587,1761241833120,-500.0,0.0004392,10]
[392181588,1761241833129,-500.0,0.0004392,10]
[392181589,1761241833139,-2942.0755104,0.00043941,15]
[392181590,1761241833149,-174.73,0.00043957,2]
[392181591,1761241833162,-4000.67746064,0.00044,2]
[392181592,1761241833171,-2100.0,0.00044,30]
[392181593,1761241833181,-900.0,0.00044,30]
[392181594,1761241833190,-192.92862995,0.00044039,28]
[392181595,1761241833200,-2942.0755104,0.00044062,15]
[392181596,1761241833210,-500.0,0.0004417,10]
[392181597,1761241833220,-2942.0755104,0.00044183,15]
[392181598,1761241833229,-171.0,0.00044184,30]
[392181599,1761241833238,-1000.0,0.000442,7]
[392181600,1761241833248,-388.0,0.00044248,2]
[392181601,1761241833257,-1000.0,0.00044281,2]
[392181602,1761241833267,-2942.0755104,0.00044304,15]
[392181603,1761241833276,-388.0,0.000444,120]
[392181604,1761241833286,-1000.0,0.000444,2]
[392181605,1761241833295,-500.0,0.00044412,2]
[392181606,1761241833306,-2942.0755104,0.00044426,15]
[392181607,1761241833317,-388.0,0.00044443,2]
[392181608,1761241833327,-503.15038253,0.00044468,10]
[392181609,1761241833336,-192.92862995,0.00044484,28]
[392181610,1761241833346,-388.0,0.00044488,7]
[392181611,1761241833357,-2942.0755104,0.00044547,15]
[392181612,1761241833366,-573.0,0.00044592,7]
[392181613,1761241833376,-500.0,0.00044596,60]
[392181614,1761241833386,-1000.0,0.000446,7]
[392181615,1761241833396,-171.0,0.00044639,30]
[392181616,1761241833406,-150.835,0.0004465,30]
[392181617,1761241833416,-2942.0755104,0.00044668,15]
[392181618,1761241833425,-388.0,0.00044713,7]
[392181619,1761241833435,-1000.0,0.00044723,2]
[392181620,1761241833445,-200.0,0.0004478,7]
[392181621,1761241833455,-644.49452246,0.0004478,15]
[392181622,1761241833467,-533.01347134,0.0004478,17]
[392181623,1761241833477,-153.72555773,0.0004478,15]
[392181624,1761241833487,-2500.0,0.0004478,2]
[392181625,1761241833496,-151.0,0.00044784,120]
[392181626,1761241833505,-2053.0,0.00044787,2]
[392181627,1761241833516,-572.0,0.00044787,2]
[392181628,1761241833526,-818.0,0.00044787,2]
[392181629,1761241833536,-614.323,0.00044787,2]
[392181630,1761241833549,-1536.84423966,0.00044787,2]
[392181631,1761241833561,-54.15576034,0.00044787,2]
[392181632,1761241833571,-1314.711,0.00044787,2]
[392181633,1761241833581,-903.0,0.00044787,2]
[392181634,1761241833590,-2549.0,0.00044787,2]
[392181635,1761241833600,-817.0,0.00044787,2]
[392181636,1761241833609,-1268.0,0.00044787,2]
[392181637,1761241833619,-6537.0,0.00044787,2]
[392181638,1761241833629,-3486.0,0.00044787,2]
[392181639,1761241833638,-6454.0,0.00044787,2]
[392181640,1761241833648,-2942.0755104,0.00044789,15]
[392181641,1761241833658,-644.49452244,0.00044794,15]
[392181642,1761241833667,-644.49452244,0.00044809,15]
[392181643,1761241833677,-644.49452244,0.00044823,15]
[392181644,1761241833687,-390.0,0.00044834,2]
[392181645,1761241833697,-644.49452244,0.00044838,15]
[392181646,1761241833707,-644.49452244,0.00044852,15]
[392181647,1761241833717,-644.49452244,0.00044867,15]
[392181648,1761241833880,-43675.863191,0.0004487,3]
[392181649,1761241833891,-151.0,0.00044877,120]
[392181650,1761241833900,-166.49,0.00044878,120]
[392181651,1761241833911,-500.0,0.0004488,120]
[392181652,1761241833921,-500.0,0.0004488,120]
[392181653,1761241833930,-500.0,0.0004488,120]
[392181654,1761241833940,-500.0,0.0004488,120]
[392181655,1761241833950,-500.0,0.0004488,120]
[392181656,1761241833961,-500.0,0.0004488,120]
[392181657,1761241833972,-500.0,0.0004488,120]
[392181658,1761241833982,-500.0,0.0004488,7]
[392181659,1761241833992,-500.0,0.0004488,120]
[392181660,1761241834003,-500.0,0.0004488,120]
[392181661,1761241834012,-500.0,0.0004488,120]
[392181662,1761241834022,-500.0,0.0004488,120]
[392181663,1761241834032,-500.0,0.0004488,120]
[392181664,1761241834041,-500.0,0.0004488,120]
[392181665,1761241834051,-500.0,0.0004488,120]
[392181666,1761241834061,-500.0,0.0004488,30]
[392181667,1761241834070,-199.0,0.0004488,7]
[392181668,1761241834080,-76331.33196703,0.0004488,2]
[392181669,1761241834091,-1086.25013297,0.0004488,2]
[392181670,1761241834100,-5000.0,0.0004488,120]
[392181671,1761241834110,-644.49452244,0.00044881,15]
[392181672,1761241834120,-176.76056241,0.00044889,22]
[392181673,1761241834129,-644.49452244,0.00044896,15]
[392181674,1761241834139,-500.0,0.000449,60]
[392181675,1761241834149,-500.0,0.000449,60]
[392181676,1761241834158,-500.0,0.000449,60]
[392181677,1761241834167,-500.0,0.000449,60]
[392181678,1761241834176,-500.0,0.000449,60]
[392181679,1761241834185,-500.0,0.000449,60]
[392181680,1761241834195,-500.0,0.000449,60]
[392181681,1761241834204,-500.0,0.000449,60]
[392181682,1761241834214,-500.0,0.000449,60]
[392181683,1761241834224,-500.0,0.000449,60]
[392181684,1761241834233,-160.0,0.000449,120]
[392181685,1761241834243,-176.54316693,0.000449,17]
[392181686,1761241834253,-195.673476,0.000449,2]
[392181687,1761241834265,-417.39521494,0.000449,120]
[392181688,1761241834275,-200.90864579,0.000449,9]
[392181689,1761241834285,-507.50372054,0.0004491,2]
[392181690,1761241834294,-644.49452244,0.0004491,15]
[392181691,1761241834304,-2942.0755104,0.0004491,15]
[392181692,1761241834318,-417.39521494,0.00044915,120]
[392181693,1761241834327,-388.0,0.00044918,2]
[392181694,1761241834336,-192.92862995,0.00044928,28]
[392181695,1761241834347,-417.39521494,0.0004493,120]
[392181696,1761241834356,-195.67347599,0.00044935,2]
[392181697,1761241834366,-176.54316693,0.0004494,17]
[392181698,1761241834374,-507.50372054,0.0004494,2]
[392181699,1761241834386,-10918.9657978,0.00044951,3]
[392181700,1761241834396,-390.0,0.00044969,7]
[392181701,1761241834407,-500.0,0.0004497,120]
[392181702,1761241834416,-500.0,0.0004497,120]
[392181703,1761241834426,-500.0,0.0004497,120]
[392181704,1761241834437,-501.87,0.0004497,120]
[392181705,1761241834447,-500.0,0.0004497,120]
[392181706,1761241834456,-300.0,0.0004497,120]
[392181707,1761241834466,-300.0,0.0004497,120]
[392181708,1761241834476,-399.4995,0.0004497,120]
[392181709,1761241834485,-500.0,0.0004497,120]
[392181710,1761241834495,-500.0,0.0004497,120]
[392181711,1761241834504,-500.0,0.0004497,120]
[392181712,1761241834514,-404.83206297,0.0004497,120]
[392181713,1761241834526,-95.16793703,0.0004497,120]
[392181714,1761241834535,-406.47518809,0.0004497,120]
[392181715,1761241834546,-142.09481191,0.0004497,120]
[392181716,1761241834556,-500.0,0.0004497,120]
[392181717,1761241834565,-500.0,0.0004497,120]
[392181718,1761241834574,-507.50372054,0.0004497,2]
[392181719,1761241834584,-500.0,0.0004497,2]
[392181720,1761241834593,-195.67347599,0.0004497,2]
[392181721,1761241834603,-500.0,0.0004497,2]
[392181722,1761241834612,-8413.31719156,0.0004497,3]
[392181723,1761241834629,-500.0,0.00039726,15]
[392181724,1761241834638,-2521.63240502,0.0004497,3]
[392181738,1761241837720,-255.11076555,0.00039726,15]
[392181739,1761241837824,-244.88923445,0.00039726,15]
[392181740,1761241837833,-500.0,0.00039726,15]
[392181741,1761241837843,-602.30879051,0.00039726,15]
[392181742,1761241837853,-581.688,0.00044787,2]
[392181743,1761241837862,-3.16051844,0.0004497,3]
[392181763,1761241839930,-5088.21777215,0.0004497,3]
[392181764,1761241839944,-555.38445623,0.0004497,3]
[392181765,1761241839956,-1702.5401342,0.0004497,3]
[392181776,1761241840352,-0.00049953,0.0004497,3]
[392181777,1761241840364,-4431.8,0.0004497,3]
[392181778,1761241840421,-160.53645342,0.0004497,3]
[392181799,1761241842967,-64475.13695155,0.0004497,3]
[392181800,1761241842977,-5529.53876487,0.0004497,3]
[392181801,1761241842986,-168.0,0.00044971,2]
[392181802,1761241842995,-150.0,0.00044976,60]
[392181803,1761241843004,-500.0,0.00044976,2]
[392181804,1761241843013,-150.0,0.00044976,15]
[392181805,1761241843023,-150.0,0.00044976,15]
[392181806,1761241843032,-150.0,0.00044976,2]
[392181807,1761241843042,-150.0,0.00044976,15]
[392181808,1761241843051,-150.0,0.00044976,15]
[392181809,1761241843061,-150.0,0.00044976,15]
[392181810,1761241843071,-10918.9657978,0.00044978,3]
[392181811,1761241843080,-11059.0775297,0.00044979,3]
[392181812,1761241843091,-10918.9657978,0.00044979,3]
[392181813,1761241843102,-5529.53876487,0.00044979,3]
[392181814,1761241843113,-500.0,0.0004498,7]
[392181815,1761241843124,-580.64,0.0004498,2]
[392181816,1761241843134,-151.0,0.0004498,120]
[392181817,1761241843143,-151.0,0.0004498,120]
[392181818,1761241843153,-151.0,0.0004498,120]
[392181820,1761241843164,-151.0,0.0004498,120]
[392181821,1761241843173,-272.038146,0.0004498,120]
[392181823,1761241843183,-151.0,0.0004498,120]
[392181824,1761241843195,-272.038146,0.0004498,120]
[392181825,1761241843205,-151.0,0.0004498,60]
[392181826,1761241843216,-151.0,0.0004498,120]
[392181827,1761241843225,-272.038146,0.0004498,120]
[392181828,1761241843235,-272.038146,0.0004498,120]
[392181829,1761241843244,-151.0,0.0004498,120]
[392181830,1761241843253,-545.44115,0.0004498,30]
[392181831,1761241843262,-545.44115,0.0004498,30]
[392181832,1761241843272,-545.44115,0.0004498,30]
[392181833,1761241843282,-545.44115,0.0004498,30]
[392181834,1761241843292,-151.0,0.0004498,120]
[392181835,1761241843302,-151.0,0.0004498,120]
[392181836,1761241843315,-500.0,0.0004498,2]
[392181837,1761241843324,-151.0,0.0004498,120]
[392181838,1761241843334,-160.693248,0.0004498,120]
[392181839,1761241843343,-151.0,0.0004498,120]
[392181842,1761241843353,-151.0,0.0004498,120]
[392181843,1761241843362,-153.532405,0.0004498,120]
[392181844,1761241843371,-516.067562,0.0004498,120]
[392181845,1761241843380,-151.0,0.0004498,120]
[392181846,1761241843391,-151.0,0.0004498,120]
[392181847,1761241843401,-65513.7947866,0.0004498,3]
[392181848,1761241843411,-57718.22794506,0.0004498,3]
[392181883,1761241846281,-151.0,0.00038151,2]
[392181884,1761241846292,-516.067562,0.0004498,120]
[392181885,1761241846302,-151.0,0.0004498,120]
[392181886,1761241846313,-312.591818,0.0004498,120]
[392181906,1761241868098,152.96882077,7.945e-05,2]